bitfinex/quotes_BTCUSD_20250718
["timestamp","ask_amount","ask_price","bid_price","bid_amount"]
[1752805036689,0.41051368,120080.0,120070.0,0.03417001]
[1752805041026,0.41051368,120080.0,120070.0,0.0340705]
[1752805042156,0.41051368,120080.0,120070.0,0.20363]
[1752805042157,0.27439368,120080.0,120070.0,0.20363]
[1752805042382,0.41035368,120080.0,120070.0,0.0370605]
[1752805042594,0.41035368,120080.0,120070.0,0.0340705]
[1752805043021,0.27439368,120080.0,120070.0,0.0340705]
[1752805043282,0.41031368,120080.0,120070.0,0.0340705]
[1752805045031,0.41556368,120080.0,120070.0,0.0340705]
[1752805046283,0.27964368,120080.0,120070.0,0.0340705]
[1752805046524,0.41027368,120080.0,120070.0,0.0340705]
[1752805046930,0.27439368,120080.0,120070.0,0.20064]
[1752805047144,0.27439368,120080.0,120070.0,0.20363]
[1752805047355,0.41027368,120080.0,120070.0,0.0370605]
[1752805047804,0.27439368,120080.0,120070.0,0.20363]
[1752805048012,0.41027368,120080.0,120070.0,0.0370605]
[1752805049104,0.3247634,120080.0,120070.0,0.0370605]
[1752805050889,0.18324122,120060.0,120050.0,0.0002]
[1752805051096,0.4067115,120060.0,120050.0,0.0002]
[1752805051315,1.01270522,120060.0,120050.0,0.0002]
[1752805051761,0.17495612,120030.0,120020.0,0.0168]
[1752805051985,0.17495612,120030.0,120020.0,0.034]
[1752805051986,0.2604664,120030.0,120020.0,0.034]
[1752805052201,0.3962664,120030.0,120020.0,0.03699]
[1752805052411,0.2604664,120030.0,120020.0,0.03699]
[1752805052623,0.40452723,120030.0,120020.0,0.03699]
[1752805053038,0.40502722,120030.0,120020.0,0.03699]
[1752805054121,0.26922722,120030.0,120020.0,0.03699]
[1752805054343,0.40502722,120030.0,120020.0,0.034]
[1752805054565,0.41027722,120030.0,120020.0,0.034]
[1752805054777,0.41023722,120030.0,120020.0,0.034]
[1752805054990,0.41323722,120030.0,120020.0,0.034]
[1752805055201,0.41423722,120030.0,120020.0,0.0002]
[1752805055639,0.75423722,120030.0,120020.0,0.0002]
[1752805056054,0.75414491,120030.0,120020.0,0.0002]
[1752805057137,0.61838491,120030.0,120020.0,0.0002]
[1752805057341,0.75414491,120030.0,120020.0,0.0002]
[1752805057927,0.81414491,120030.0,120020.0,0.0002]
[1752805059340,0.81414491,120030.0,120020.0,0.016]
[1752805059777,0.81414491,120030.0,120020.0,0.0002]
[1752805059981,0.33313491,120030.0,120020.0,0.0339]
[1752805060151,0.46885491,120030.0,120020.0,0.0339]
[1752805060568,0.34146595,120030.0,120020.0,0.20887076]
[1752805060815,0.47718595,120030.0,120020.0,0.21186076]
[1752805061028,0.25602609,120030.0,120020.0,0.22852408]
[1752805061230,0.21688186,120030.0,120020.0,0.68026962]
[1752805061504,0.22521297,120030.0,120020.0,0.68026962]
[1752805061722,0.40016916,120030.0,120020.0,0.27944378]
[1752805061920,0.38350729,120030.0,120020.0,0.03689]
[1752805062535,0.39196487,120030.0,120020.0,0.03689]
[1752805062694,0.38350729,120030.0,120020.0,0.22019256]
[1752805062895,0.38350729,120030.0,120020.0,0.22852422]
[1752805063105,0.38350729,120030.0,120020.0,0.22019256]
[1752805063741,0.37517618,120030.0,120020.0,0.21186083]
[1752805063886,0.366845,120030.0,120020.0,0.2201927]
[1752805064087,0.366845,120030.0,120020.0,0.0339]
[1752805066103,0.306845,120030.0,120020.0,0.0339]
[1752805067151,0.306845,120030.0,120020.0,0.20887069]
[1752805067279,0.00449999,120030.0,120020.0,0.22852401]
[1752805067483,0.32342736,120030.0,120020.0,0.22019242]
[1752805067796,0.33175826,120030.0,120020.0,0.22019242]
[1752805067995,0.33175826,120030.0,120020.0,0.21186069]
[1752805068204,0.32342736,120030.0,120020.0,0.0339]
[1752805068415,0.41109764,120030.0,120020.0,0.0319]
[1752805068615,1.15289136,120030.0,120020.0,0.0002]
[1752805068907,1.16799136,120030.0,120020.0,0.0002]
[1752805069084,1.18349136,120030.0,120020.0,0.0002]
[1752805070476,1.20851136,120030.0,120020.0,0.0002]
[1752805070685,1.23357055,120030.0,120020.0,0.0002]
[1752805070875,1.23057055,120030.0,120020.0,0.0002]
[1752805071089,1.22957055,120030.0,120020.0,0.0002]
[1752805071243,1.23757055,120030.0,120020.0,0.0002]
[1752805072262,1.24557055,120030.0,120020.0,0.0002]
[1752805072462,1.22051136,120030.0,120020.0,0.0002]
[1752805074136,1.28051136,120030.0,120020.0,0.0002]
[1752805074890,0.86574849,120030.0,120020.0,0.0002]
[1752805075098,0.86574849,120030.0,120020.0,0.00016]
[1752805075832,0.89040023,120030.0,120020.0,0.00016]
[1752805076858,0.89886559,120030.0,120020.0,0.00016]
[1752805079020,1.29276183,120030.0,120020.0,0.00016]
[1752805079719,1.30826183,120030.0,120020.0,0.00016]
[1752805079938,0.91436559,120030.0,120020.0,0.00016]
[1752805080141,1.30826183,120030.0,120020.0,0.00016]
[1752805080397,0.91436559,120030.0,120020.0,0.00016]
[1752805080525,1.29276183,120030.0,120020.0,0.00016]
[1752805081806,0.19785841,120010.0,120000.0,0.01018673]
[1752805082010,0.83571615,120010.0,120000.0,0.01018673]
[1752805082417,0.85728615,120010.0,120000.0,0.01018673]
[1752805082618,0.72180615,120010.0,120000.0,0.01018673]
[1752805082823,0.85828615,120010.0,120000.0,0.01018673]
[1752805083248,1.22898615,120010.0,120000.0,0.01018673]
[1752805083685,1.23098615,120010.0,120000.0,0.01018673]
[1752805084222,0.31137906,120010.0,120000.0,0.01222673]
[1752805084444,0.42825906,120010.0,120000.0,0.44027297]
[1752805084650,0.29281906,120010.0,120000.0,0.44027297]
[1752805084884,0.42525906,120010.0,120000.0,0.04637673]
[1752805085081,0.43325906,120010.0,120000.0,0.04637673]
[1752805085291,0.44125906,120010.0,120000.0,0.04322673]
[1752805085690,0.44223906,120010.0,120000.0,0.04322673]
[1752805085892,0.45224906,120010.0,120000.0,0.04118673]
[1752805086870,0.45224906,120010.0,120000.0,0.02568673]
[1752805087088,0.45224906,120010.0,120000.0,0.01018673]
[1752805087500,0.45224906,120010.0,120000.0,0.02618673]
[1752805087931,0.45224906,120010.0,120000.0,0.01018673]
[1752805090986,0.45224906,120010.0,120000.0,0.02678673]
[1752805091394,0.31680906,120010.0,120000.0,0.02678673]
[1752805091602,0.45216906,120010.0,120000.0,0.04402673]
[1752805091812,0.45216906,120010.0,120000.0,0.02678673]
[1752805092019,0.45216906,120010.0,120000.0,0.01018673]
[1752805092870,0.80796906,120010.0,120000.0,0.01018673]
[1752805093078,1.2385503,120010.0,120000.0,0.01018673]
[1752805093289,1.30493759,120010.0,120000.0,0.01018673]
[1752805094508,0.92018591,120010.0,120000.0,0.01018673]
[1752805094939,0.94521191,120010.0,120000.0,0.01018673]
[1752805095142,1.32996359,120010.0,120000.0,0.01018673]
[1752805095882,1.19460359,120010.0,120000.0,0.01018673]
[1752805096086,0.84718462,120010.0,120000.0,0.01018673]
[1752805097619,1.04726462,120010.0,120000.0,0.01018673]
[1752805099807,0.89241377,120010.0,120000.0,0.04532673]
[1752805100016,0.67216506,120010.0,120000.0,0.04532673]
[1752805100206,0.67715506,120010.0,120000.0,0.04532673]
[1752805100407,0.69263886,120010.0,120000.0,0.04328673]
[1752805100843,0.55739886,120010.0,120000.0,0.04328673]
[1752805101051,0.69263886,120010.0,120000.0,0.04328673]
[1752805101471,0.69264208,120010.0,120000.0,0.04328673]
[1752805102096,0.67715506,120010.0,120000.0,0.04328673]
[1752805103857,0.67715506,120010.0,120000.0,0.01018673]
[1752805104087,1.44784759,120010.0,120000.0,0.01018673]
[1752805104305,1.46333781,120010.0,120000.0,1e-08]
[1752805104482,1.51333781,120010.0,120000.0,1e-08]
[1752805105976,1.54833781,120010.0,120000.0,1e-08]
[1752805106402,1.50633781,120010.0,120000.0,1e-08]
[1752805106626,1.55633781,120010.0,120000.0,1e-08]
[1752805107017,1.54933781,120010.0,120000.0,1e-08]
[1752805107215,1.50733781,120010.0,120000.0,1e-08]
[1752805107460,1.55733781,120010.0,120000.0,1e-08]
[1752805108072,1.37209781,120010.0,120000.0,1e-08]
[1752805108243,1.02656528,120010.0,120000.0,1e-08]
[1752805108547,1.02655947,120010.0,120000.0,1e-08]
[1752805108777,1.01107506,120010.0,120000.0,1e-08]
[1752805108978,1.41966495,120010.0,120000.0,1e-08]
[1752805109120,0.90303003,120010.0,120000.0,1e-08]
[1752805109334,1.41973495,120010.0,120000.0,1e-08]
[1752805109564,1.48553495,120010.0,120000.0,1e-08]
[1752805109779,1.50103495,120010.0,120000.0,1e-08]
[1752805110206,1.45103495,120010.0,120000.0,1e-08]
[1752805110405,1.41973495,120010.0,120000.0,1e-08]
[1752805111804,1.43543495,120010.0,120000.0,1e-08]
[1752805111946,1.02568591,120010.0,120000.0,1e-08]
[1752805112155,1.41973495,120010.0,120000.0,1e-08]
[1752805113120,1.02568591,120010.0,120000.0,1e-08]
[1752805113530,1.41973495,120010.0,120000.0,1e-08]
[1752805114156,0.88546591,120010.0,120000.0,0.03210001]
[1752805114377,0.89056591,120010.0,120000.0,0.03210001]
[1752805114595,1.02564591,120010.0,120000.0,0.03210001]
[1752805115003,1.41969495,120010.0,120000.0,0.03210001]
[1752805115211,1.41969495,120010.0,120000.0,1e-08]
[1752805116723,1.02564591,120010.0,120000.0,1e-08]
[1752805116964,1.00596506,120010.0,120000.0,0.03329001]
[1752805117862,0.87092506,120010.0,120000.0,0.03329001]
[1752805118094,1.01106506,120010.0,120000.0,1e-08]
[1752805118320,1.4051141,120010.0,120000.0,1e-08]
[1752805118747,1.01106506,120010.0,120000.0,0.03210001]
[1752805118955,1.01106506,120010.0,120000.0,0.03419001]
[1752805119161,1.00596506,120010.0,120000.0,0.03419001]
[1752805119571,0.53092506,120010.0,120000.0,0.03419001]
[1752805119793,0.66592506,120010.0,120000.0,0.03419001]
[1752805120377,0.69236653,120010.0,120000.0,0.03419001]
[1752805120541,0.66592506,120010.0,120000.0,0.03419001]
[1752805121155,1.0650741,120010.0,120000.0,0.03210001]
[1752805121368,1.0400481,120010.0,120000.0,0.03210001]
[1752805121591,0.64599906,120010.0,120000.0,0.03210001]
[1752805121820,0.50589906,120010.0,120000.0,0.03419001]
[1752805122035,0.64085906,120010.0,120000.0,0.03716001]
[1752805122834,0.64085906,120010.0,120000.0,0.03419001]
[1752805124096,1.0369881,120010.0,120000.0,0.03419001]
[1752805124348,0.64595906,120010.0,120000.0,0.03419001]
[1752805124549,0.64085906,120010.0,120000.0,0.03419001]
[1752805124913,0.64085906,120010.0,120000.0,0.03716001]
[1752805125117,0.64085906,120010.0,120000.0,0.43120905]
[1752805125719,0.64081906,120010.0,120000.0,0.59787571]
[1752805125899,0.63248677,120010.0,120000.0,0.43120905]
[1752805126514,0.63248677,120010.0,120000.0,0.03716001]
[1752805126721,0.63248677,120010.0,120000.0,0.43120905]
[1752805126925,0.63248677,120010.0,120000.0,0.59787571]
[1752805127665,0.17191122,120010.0,120000.0,0.63120819]
[1752805127882,0.18024323,120010.0,120000.0,0.63120819]
[1752805128099,0.18024323,120010.0,120000.0,0.7118304]
[1752805128316,0.17191122,120010.0,120000.0,0.7118304]
[1752805128524,0.17191122,120010.0,120000.0,1.10587944]
[1752805128730,0.15092,120010.0,120000.0,1.44587944]
[1752805129162,0.14292,120010.0,120000.0,1.53138972]
[1752805129383,0.009,120010.0,120000.0,1.53238972]
[1752805129804,0.008,120010.0,120000.0,1.53138972]
[1752805130016,0.01,120010.0,120000.0,1.53338972]
[1752805130233,0.002,120010.0,120000.0,1.53338972]
[1752805130433,0.00150182,120010.0,120000.0,1.53338972]
[1752805131076,0.00350182,120010.0,120000.0,1.53338972]
[1752805131486,0.00150182,120010.0,120000.0,1.54153076]
[1752805132816,0.00250182,120010.0,120000.0,1.54153076]
[1752805133757,0.00250182,120010.0,120000.0,1.80173076]
[1752805133996,0.00250182,120010.0,120000.0,1.01363268]
[1752805134205,0.00250182,120010.0,120000.0,1.80173076]
[1752805135359,0.00250182,120010.0,120000.0,1.01363268]
[1752805135560,0.00250182,120010.0,120000.0,1.72110855]
[1752805135759,0.00250182,120010.0,120000.0,1.85586855]
[1752805137168,0.00250182,120010.0,120000.0,1.06777047]
[1752805137426,0.00250182,120010.0,120000.0,1.84772751]
[1752805137617,0.00250182,120010.0,120000.0,1.05871847]
[1752805137971,0.00250182,120010.0,120000.0,0.75042905]
[1752805138177,0.1941516,120010.0,120000.0,0.20582667]
[1752805138386,0.1941516,120010.0,120000.0,0.22249312]
[1752805138604,0.1941516,120010.0,120000.0,0.62487528]
[1752805138783,0.1941516,120010.0,120000.0,0.64154131]
[1752805139014,0.1941516,120010.0,120000.0,0.63320833]
[1752805139219,0.02749883,120010.0,120000.0,0.63320833]
[1752805139421,0.01083397,120010.0,120000.0,0.72153005]
[1752805139595,0.01916619,120010.0,120000.0,0.72153005]
[1752805139983,0.02749855,120010.0,120000.0,0.72153005]
[1752805140383,0.18581965,120010.0,120000.0,0.43023905]
[1752805140600,0.18581965,120010.0,120000.0,0.03619001]
[1752805140803,0.18795965,120010.0,120000.0,0.03619001]
[1752805141012,0.19103965,120010.0,120000.0,0.00200001]
[1752805141495,0.32571965,120010.0,120000.0,0.00200001]
[1752805142128,0.38571965,120010.0,120000.0,0.00200001]
[1752805142736,0.38471965,120010.0,120000.0,0.00200001]
[1752805142968,0.25003965,120010.0,120000.0,0.00200001]
[1752805143142,0.38045965,120010.0,120000.0,0.6042589]
[1752805143327,0.37895783,120010.0,120000.0,0.67784005]
[1752805143541,0.37895783,120010.0,120000.0,0.68617338]
[1752805143742,0.37895783,120010.0,120000.0,0.51117339]
[1752805144107,0.38095783,120010.0,120000.0,0.42925905]
[1752805144873,0.38095783,120010.0,120000.0,0.59592571]
[1752805145081,0.38095783,120010.0,120000.0,0.60425897]
[1752805145458,0.3726254,120010.0,120000.0,0.42925905]
[1752805146954,0.3726254,120010.0,120000.0,0.60425904]
[1752805147172,0.3725854,120010.0,120000.0,0.61259216]
[1752805147385,0.3725854,120010.0,120000.0,0.60425904]
[1752805148025,0.3725854,120010.0,120000.0,0.42925905]
[1752805148231,0.3778054,120010.0,120000.0,0.03521001]
[1752805148435,0.3778054,120010.0,120000.0,0.00200001]
[1752805149388,0.3778054,120010.0,120000.0,0.01700001]
[1752805149985,0.3778054,120010.0,120000.0,0.03571001]
[1752805150941,0.3725854,120010.0,120000.0,0.42975905]
[1752805151353,0.3747254,120010.0,120000.0,0.42975905]
[1752805151557,0.3747254,120010.0,120000.0,0.03571001]
[1752805151732,0.3778054,120010.0,120000.0,0.01911001]
[1752805152296,0.3778054,120010.0,120000.0,0.20167667]
[1752805152508,0.3725854,120010.0,120000.0,0.60405904]
[1752805152715,0.3725854,120010.0,120000.0,0.21001]
[1752805153142,0.3725854,120010.0,120000.0,0.60405904]
[1752805154383,0.3725854,120010.0,120000.0,0.6123923]
[1752805154634,0.3725854,120010.0,120000.0,0.03501001]
[1752805154897,0.3725854,120010.0,120000.0,0.21834319]
[1752805155117,0.3725454,120010.0,120000.0,0.61556223]
[1752805155560,0.063,120010.0,120000.0,0.69628651]
[1752805155761,0.063,120010.0,120000.0,1.19251172]
[1752805155964,0.003,120010.0,120000.0,1.19251172]
[1752805156663,0.003,120010.0,120000.0,1.53251172]
[1752805157650,0.01966437,120010.0,120000.0,1.0577384]
[1752805157830,0.03632923,120010.0,120000.0,1.0577384]
[1752805158046,0.205122,120010.0,120000.0,0.93572571]
[1752805158361,0.18320527,120010.0,120000.0,0.03501001]
[1752805158960,0.18320527,120010.0,120000.0,0.20167667]
[1752805159331,0.18012527,120010.0,120000.0,0.20167667]
[1752805159538,0.23798527,120010.0,120000.0,0.61239188]
[1752805160060,0.23798527,120010.0,120000.0,0.6040589]
[1752805160277,0.23798527,120010.0,120000.0,0.61239202]
[1752805160473,0.23798527,120010.0,120000.0,0.62072507]
[1752805161088,0.23798527,120010.0,120000.0,0.21000993]
[1752805161293,0.23798527,120010.0,120000.0,0.60405897]
[1752805161496,0.23798527,120010.0,120000.0,0.20167667]
[1752805161755,0.23798527,120010.0,120000.0,0.59572571]
[1752805161958,0.23798527,120010.0,120000.0,0.61239216]
[1752805162142,0.07966479,120010.0,120000.0,0.70728224]
[1752805162376,0.07966437,120010.0,120000.0,0.70728224]
[1752805162621,0.063,120010.0,120000.0,1.57898128]
[1752805162842,0.003,120010.0,120000.0,1.66449156]
[1752805163694,0.003,120010.0,120000.0,0.87639348]
[1752805163913,0.003,120010.0,120000.0,1.66449156]
[1752805164329,0.003,120010.0,120000.0,0.87639348]
[1752805164552,0.003,120010.0,120000.0,1.66449156]
[1752805165145,0.003,120010.0,120000.0,1.64520394]
[1752805165369,0.003,120010.0,120000.0,1.90540394]
[1752805165586,0.003,120010.0,120000.0,1.52099871]
[1752805168741,0.003,120010.0,120000.0,1.13659348]
[1752805168953,0.003,120010.0,120000.0,1.52099871]
[1752805170141,0.003,120010.0,120000.0,1.38655871]
[1752805170362,0.003,120010.0,120000.0,1.52091871]
[1752805174402,0.01133215,120010.0,120000.0,1.52087871]
[1752805174612,0.003,120010.0,120000.0,1.52087871]
[1752805178474,0.003,120010.0,120000.0,1.38655871]
[1752805178681,0.003,120010.0,120000.0,1.52083871]
[1752805179533,0.003,120010.0,120000.0,1.13643348]
[1752805179733,0.003,120010.0,120000.0,1.52083871]
[1752805180298,0.003,120010.0,120000.0,1.05820922]
[1752805180501,0.003,120010.0,120000.0,1.44261445]
[1752805183047,0.003,120010.0,120000.0,1.82701968]
[1752805184050,0.003,120010.0,120000.0,1.44261445]
[1752805184725,0.002,120010.0,120000.0,1.44261445]
[1752805185051,0.003,120010.0,120000.0,1.53137407]
[1752805187119,0.003,120010.0,120000.0,1.93425526]
[1752805188207,0.001,120010.0,120000.0,1.93225526]
[1752805188624,0.002,120010.0,120000.0,1.93325526]
[1752805190637,0.002,120010.0,120000.0,1.94779611]
[1752805193644,0.00049999,120030.0,120020.0,1.02436114]
[1752805193848,0.00049999,120030.0,120020.0,1.33171104]
[1752805194277,0.00049999,120030.0,120020.0,1.33464104]
[1752805194509,0.00049999,120030.0,120020.0,1.93484104]
[1752805195790,0.00049999,120030.0,120020.0,1.98484104]
[1752805196378,0.06638729,120060.0,120050.0,0.6164292]
[1752805196588,0.06647059,120060.0,120050.0,1.1839391]
[1752805196803,0.06647059,120060.0,120050.0,1.0498591]
[1752805197827,0.06747059,120060.0,120050.0,1.0528591]
[1752805198901,0.06847059,120060.0,120050.0,1.1919391]
[1752805199706,0.06847059,120060.0,120050.0,1.1948691]
[1752805200087,0.06847059,120060.0,120050.0,1.5348691]
[1752805200309,0.06847059,120060.0,120050.0,1.5319391]
[1752805200744,0.0817592,120060.0,120050.0,1.3666591]
[1752805201265,0.09008795,120060.0,120050.0,1.3646991]
[1752805201478,0.26500014,120060.0,120050.0,1.27061011]
[1752805201633,0.26500014,120060.0,120050.0,1.19342927]
[1752805201634,0.28892923,120060.0,120050.0,1.19342927]
[1752805201861,0.12931677,120060.0,120050.0,1.20175864]
[1752805202040,0.1293167,120060.0,120050.0,1.20175864]
[1752805202261,0.12234566,120060.0,120050.0,0.80811543]
[1752805202614,0.12234566,120060.0,120050.0,1.28751826]
[1752805202794,0.1140167,120060.0,120050.0,1.28751826]
[1752805203005,0.0984167,120060.0,120050.0,1.28751826]
[1752805203433,0.10674566,120060.0,120050.0,1.28751826]
[1752805203640,0.0984167,120060.0,120050.0,1.28751826]
[1752805204076,0.01537198,120060.0,120050.0,1.28751826]
[1752805204287,0.01537191,120060.0,120050.0,1.28751826]
[1752805204487,0.02370059,120060.0,120050.0,1.28751826]
[1752805204698,0.03202927,120060.0,120050.0,1.28751826]
[1752805204906,0.02370045,120060.0,120050.0,1.28751826]
[1752805205112,0.0070433,120060.0,120050.0,1.28751826]
[1752805206155,0.0070433,120060.0,120050.0,1.28947826]
[1752805206686,0.0070433,120060.0,120050.0,1.30527826]
[1752805207326,0.0020833,120060.0,120050.0,1.40891854]
[1752805208365,0.0020833,120060.0,120050.0,1.40598854]
[1752805208576,0.0020833,120060.0,120050.0,1.53994854]
[1752805208796,0.0070433,120060.0,120050.0,1.28726892]
[1752805209017,0.0070433,120060.0,120050.0,0.89362571]
[1752805209191,0.0225433,120060.0,120050.0,1.28726892]
[1752805209979,0.0070433,120060.0,120050.0,1.28726892]
[1752805211082,0.01537184,120060.0,120050.0,1.28726892]
[1752805211290,0.01537184,120060.0,120050.0,1.37302854]
[1752805211517,0.02370052,120060.0,120050.0,1.37302854]
[1752805211677,0.01537184,120060.0,120050.0,1.37302854]
[1752805211891,0.02370045,120060.0,120050.0,1.37302854]
[1752805212620,0.01537184,120060.0,120050.0,1.37302854]
[1752805212824,0.0070433,120060.0,120050.0,1.37302854]
[1752805214105,0.02370052,120060.0,120050.0,1.37302854]
[1752805214956,0.03202934,120060.0,120050.0,1.37302854]
[1752805215180,0.03202934,120060.0,120050.0,0.97938533]
[1752805215392,0.03202934,120060.0,120050.0,1.37302854]
[1752805215634,0.03202934,120060.0,120050.0,0.008]
[1752805215635,0.22148452,120060.0,120050.0,0.008]
[1752805216042,0.35536452,120060.0,120050.0,0.008]
[1752805218480,0.35436452,120060.0,120050.0,0.005]
[1752805218699,0.35436452,120060.0,120050.0,0.006]
[1752805219058,0.3059948,120060.0,120050.0,0.006]
[1752805219313,0.4388348,120060.0,120050.0,0.001]
[1752805219473,0.83247801,120060.0,120050.0,0.001]
[1752805219673,0.83347801,120060.0,120050.0,0.005]
[1752805219877,0.4388348,120060.0,120050.0,0.001]
[1752805220112,0.0249927,120030.0,120020.0,0.59360811]
[1752805220319,0.1637927,120030.0,120020.0,0.59360811]
[1752805220493,0.17212388,120030.0,120020.0,0.59360811]
[1752805220691,0.17212388,120030.0,120020.0,0.58527673]
[1752805221101,0.17212388,120030.0,120020.0,0.19163352]
[1752805221302,0.17312388,120030.0,120020.0,0.19563352]
[1752805221497,0.17312388,120030.0,120020.0,0.58927673]
[1752805221752,0.1647927,120030.0,120020.0,0.67503635]
[1752805222299,0.17412388,120030.0,120020.0,0.68103635]
[1752805223288,0.34074889,120030.0,120020.0,0.19330207]
[1752805223525,0.34074889,120030.0,120020.0,0.58694528]
[1752805223958,0.17412388,120030.0,120020.0,0.58694528]
[1752805224175,0.34074945,120030.0,120020.0,0.58694577]
[1752805224376,0.22230945,120030.0,120020.0,0.57861397]
[1752805224583,0.35610945,120030.0,120020.0,0.64807]
[1752805224785,0.35610945,120030.0,120020.0,0.65640159]
[1752805224978,0.03195319,120030.0,120020.0,0.66473311]
[1752805225134,0.1657527,120030.0,120020.0,0.66473269]
[1752805225339,0.1657527,120030.0,120020.0,0.92493269]
[1752805226294,0.16575263,120030.0,120020.0,0.92493269]
[1752805226620,0.15742159,120030.0,120020.0,0.92493269]
[1752805226803,0.16575263,120030.0,120020.0,0.92493269]
[1752805227141,0.17408374,120030.0,120020.0,0.92493269]
[1752805228364,0.16575263,120030.0,120020.0,0.92493269]
[1752805228567,0.14909069,120030.0,120020.0,0.92705269]
[1752805228768,0.14076,120030.0,120020.0,0.94335269]
[1752805228929,0.14614069,120030.0,120020.0,0.94335269]
[1752805230650,0.15447166,120030.0,120020.0,0.94335269]
[1752805231054,0.15447152,120030.0,120020.0,0.94335269]
[1752805232017,0.17113353,120030.0,120020.0,0.94335269]
[1752805232378,0.18260471,120030.0,120020.0,0.92705269]
[1752805232586,0.002,120030.0,120020.0,0.99392976]
[1752805232789,0.13576,120030.0,120020.0,1.38757297]
[1752805232990,0.002,120030.0,120020.0,1.38757297]
[1752805233932,0.002,120030.0,120020.0,1.52133297]
[1752805234339,0.002,120030.0,120020.0,1.51812297]
[1752805234538,0.002,120030.0,120020.0,1.91497618]
[1752805234746,0.002,120030.0,120020.0,1.92951703]
[1752805237198,0.002,120030.0,120020.0,1.66931703]
[1752805237648,0.002,120030.0,120020.0,1.27567382]
[1752805238353,0.002,120030.0,120020.0,1.26109297]
[1752805239005,0.02395173,120030.0,120020.0,0.17663889]
[1752805239211,0.10673902,120030.0,120020.0,0.59527708]
[1752805239428,0.12293902,120030.0,120020.0,0.59527708]
[1752805239679,0.13127013,120030.0,120020.0,0.58694563]
[1752805239967,0.13960131,120030.0,120020.0,0.59527708]
[1752805240150,0.13960131,120030.0,120020.0,0.63895143]
[1752805240350,0.13127013,120030.0,120020.0,0.63895143]
[1752805240666,0.13127006,120030.0,120020.0,0.63895143]
[1752805240807,0.12293902,120030.0,120020.0,0.63895143]
[1752805241003,0.12293902,120030.0,120020.0,0.24530822]
[1752805241310,0.13127013,120030.0,120020.0,0.58694563]
[1752805241537,0.13127013,120030.0,120020.0,0.6036086]
[1752805241911,0.13960138,120030.0,120020.0,0.59527715]
[1752805242134,0.30622639,120030.0,120020.0,0.59527715]
[1752805242339,0.30622639,120030.0,120020.0,0.62669301]
[1752805242739,0.30622639,120030.0,120020.0,0.63502453]
[1752805243127,0.30622632,120030.0,120020.0,0.59527722]
[1752805243311,0.13960131,120030.0,120020.0,0.59527722]
[1752805243551,0.13127013,120030.0,120020.0,0.60360867]
[1752805244165,0.12293902,120030.0,120020.0,0.60360867]
[1752805244377,0.00729,120030.0,120020.0,0.68936829]
[1752805244589,0.01562069,120030.0,120020.0,0.68936829]
[1752805244806,0.02395152,120030.0,120020.0,0.68936829]
[1752805245022,0.04061353,120030.0,120020.0,0.68936829]
[1752805245673,0.04061346,120030.0,120020.0,0.29572508]
[1752805245889,0.04061346,120030.0,120020.0,0.68936829]
[1752805246975,0.04894457,120030.0,120020.0,0.68936829]
[1752805247958,0.04894457,120030.0,120020.0,0.29572508]
[1752805248148,0.04894457,120030.0,120020.0,0.68936829]
[1752805248365,0.04894457,120030.0,120020.0,0.60360867]
[1752805249525,0.04894506,120030.0,120020.0,0.20996546]
[1752805249733,0.04894506,120030.0,120020.0,0.60360867]
[1752805250693,0.20723924,120030.0,120020.0,0.58694577]
[1752805250903,0.22950834,120030.0,120020.0,0.67270546]
[1752805251186,0.2211773,120030.0,120020.0,0.68103719]
[1752805251871,0.2211773,120030.0,120020.0,0.68936885]
[1752805252138,0.2211773,120030.0,120020.0,0.68103719]
[1752805252350,0.20451501,120030.0,120020.0,0.49773477]
[1752805252558,0.20451501,120030.0,120020.0,0.41197515]
[1752805252764,0.20451501,120030.0,120020.0,0.57861404]
[1752805252969,0.20451501,120030.0,120020.0,0.58694591]
[1752805253436,0.20451501,120030.0,120020.0,0.59527771]
[1752805253605,0.20451501,120030.0,120020.0,0.41197515]
[1752805253753,0.20451501,120030.0,120020.0,0.40364321]
[1752805253952,0.20451501,120030.0,120020.0,0.01]
[1752805254267,0.2709023,120030.0,120020.0,0.01]
[1752805254499,0.27928117,120030.0,120020.0,0.01]
[1752805254744,0.27828117,120030.0,120020.0,0.006]
[1752805255105,0.2709023,120030.0,120020.0,0.009]
[1752805255299,0.2709023,120030.0,120020.0,0.003]
[1752805255300,0.3299023,120030.0,120020.0,0.003]
[1752805255504,0.3309023,120030.0,120020.0,0.009]
[1752805256856,0.33938246,120030.0,120020.0,0.009]
[1752805261090,0.27299517,120030.0,120020.0,0.009]
[1752805261486,0.38494692,120030.0,120020.0,0.009]
[1752805261687,0.42489274,120030.0,120020.0,0.009]
[1752805262055,0.35850545,120030.0,120020.0,0.009]
[1752805262474,0.35750545,120030.0,120020.0,0.006]
[1752805262708,0.36050545,120030.0,120020.0,0.007]
[1752805262881,0.35950545,120030.0,120020.0,0.001]
[1752805263083,0.36350545,120030.0,120020.0,0.002]
[1752805264064,0.07229,120030.0,120020.0,0.5622821]
[1752805264267,0.22251208,120030.0,120020.0,0.66397696]
[1752805264469,0.21418076,120030.0,120020.0,0.66397696]
[1752805264676,0.23084277,120030.0,120020.0,0.66397696]
[1752805265082,0.23084277,120030.0,120020.0,0.58941708]
[1752805265422,0.23084277,120030.0,120020.0,0.60441708]
[1752805266033,0.22770277,120030.0,120020.0,0.60441708]
[1752805266412,0.23092277,120030.0,120020.0,0.58941708]
[1752805267573,0.07237,120030.0,120020.0,0.62091708]
[1752805267796,0.21933159,120030.0,120020.0,0.30800419]
[1752805268029,0.20052,120030.0,120020.0,0.62091708]
[1752805268259,0.14052,120030.0,120020.0,0.62398708]
[1752805269114,0.14052,120030.0,120020.0,0.60237708]
[1752805269326,0.15922145,120030.0,120020.0,0.6989864]
[1752805269964,0.15922138,120030.0,120020.0,0.6989864]
[1752805270374,0.16755228,120030.0,120020.0,0.6989864]
[1752805270558,0.15922138,120030.0,120020.0,0.6989864]
[1752805270961,0.14052,120030.0,120020.0,0.6989864]
[1752805271634,0.14885062,120030.0,120020.0,0.6989864]
[1752805271851,0.15718131,120030.0,120020.0,0.6989864]
[1752805272339,0.14885062,120030.0,120020.0,0.6989864]
[1752805272757,0.14885062,120030.0,120020.0,0.70726919]
[1752805273179,0.16551214,120030.0,120020.0,0.70726919]
[1752805273819,0.15718131,120030.0,120020.0,0.70726919]
[1752805274969,0.16551207,120030.0,120020.0,0.70726919]
[1752805275263,0.14052,120030.0,120020.0,0.70726919]
[1752805275685,0.14885069,120030.0,120020.0,0.70726919]
[1752805275914,0.14052,120030.0,120020.0,0.70726919]
[1752805276337,0.15718138,120030.0,120020.0,0.70726919]
[1752805276555,0.15718138,120030.0,120020.0,0.62869987]
[1752805277250,0.14885062,120030.0,120020.0,0.62869987]